bitfinex/quotes_BTCUSD_20220226
["timestamp","ask_amount","ask_price","bid_price","bid_amount"]
[1645872807927,0.0018816,39075.0,39071.0,0.364011]
[1645872808128,0.0018816,39075.0,39070.0,0.20090533]
[1645872808331,0.0008816,39075.0,39071.0,0.3]
[1645872809178,0.0018816,39075.0,39071.0,0.3]
[1645872809378,0.0018816,39075.0,39070.0,0.20090533]
[1645872809579,0.0018816,39075.0,39071.0,0.3]
[1645872809777,0.0018816,39075.0,39070.0,0.20090533]
[1645872809979,0.0018816,39075.0,39071.0,0.3]
[1645872810379,0.0008816,39075.0,39071.0,0.3]
[1645872810986,0.0008816,39075.0,39071.0,0.464011]
[1645872811181,0.0008816,39075.0,39071.0,0.365011]
[1645872812181,0.0008816,39075.0,39071.0,0.465011]
[1645872812382,0.0008816,39075.0,39071.0,0.464011]
[1645872812584,0.0008816,39075.0,39074.0,0.1]
[1645872812827,0.0008816,39075.0,39074.0,0.42559]
[1645872813231,0.002247,39085.0,39076.0,0.0273532]
[1645872813428,0.002247,39085.0,39079.0,0.06399194]
[1645872813631,0.002247,39085.0,39080.0,0.3]
[1645872814428,0.002247,39085.0,39084.0,0.17186033]
[1645872815227,0.002247,39085.0,39079.0,0.001]
[1645872815228,0.004247,39085.0,39079.0,0.001]
[1645872816477,0.004247,39085.0,39077.0,0.22753575]
[1645872816478,0.002247,39085.0,39077.0,0.22753575]
[1645872819178,0.002247,39085.0,39076.0,0.0013532]
[1645872819179,0.003247,39085.0,39076.0,0.0013532]
[1645872820330,0.002247,39085.0,39076.0,0.0013532]
[1645872820928,0.002247,39085.0,39076.0,0.2613532]
[1645872821228,0.003247,39085.0,39076.0,0.2613532]
[1645872823128,0.004247,39085.0,39076.0,0.2613532]
[1645872825078,0.002247,39085.0,39076.0,0.2613532]
[1645872827079,0.002247,39085.0,39076.0,0.2623532]
[1645872827479,7.2e-05,39084.0,39076.0,0.2623532]
[1645872828330,7.2e-05,39084.0,39076.0,0.2613532]
[1645872829134,7.2e-05,39084.0,39076.0,0.2623532]
[1645872830331,7.2e-05,39084.0,39076.0,0.2613532]
[1645872830936,7.2e-05,39084.0,39076.0,0.2601372]
[1645872831135,0.115418,39083.0,39076.0,0.2601372]
[1645872832181,0.377294,39082.0,39076.0,0.2601372]
[1645872832379,0.428694,39081.0,39076.0,0.2601372]
[1645872832580,1.160394,39080.0,39076.0,0.2601372]
[1645872832779,0.441321,39079.0,39076.0,0.2601372]
[1645872832978,0.064027,39079.0,39076.0,0.2601372]
[1645872833178,0.0514,39078.0,39076.0,0.2601372]
[1645872833578,7.2e-05,39077.0,39076.0,0.2601372]
[1645872836430,1.48013961,39077.0,39076.0,0.2601372]
[1645872836730,1.311866,39077.0,39076.0,0.2601372]
[1645872836933,1.32456016,39077.0,39076.0,0.2601372]
[1645872837128,1.9181661,39077.0,39076.0,0.2601372]
[1645872837726,2.05649883,39077.0,39076.0,0.2601372]
[1645872837926,1.90649883,39077.0,39076.0,0.2601372]
[1645872838526,1.90549883,39077.0,39076.0,0.2601372]
[1645872838726,1.47311289,39077.0,39076.0,0.2601372]
[1645872839781,1.47311289,39077.0,39076.0,0.1303031]
[1645872841380,1.46289289,39077.0,39076.0,0.1303031]
[1645872843629,1.48964732,39077.0,39076.0,0.1303031]
[1645872845329,1.69030258,39077.0,39076.0,0.1303031]
[1645872845735,0.7831,39074.0,39070.0,0.00030394]
[1645872845934,0.8831,39072.0,39070.0,0.00030394]
[1645872846131,0.8831,39072.0,39068.0,0.0239142]
[1645872846132,0.7831,39070.0,39068.0,0.0239142]
[1645872846331,1.211794,39069.0,39068.0,0.0239142]
[1645872846779,1.35012673,39069.0,39068.0,0.0239142]
[1645872847384,1.34579876,39069.0,39068.0,0.0239142]
[1645872847782,1.34579876,39069.0,39068.0,0.0089142]
[1645872847982,1.47390476,39069.0,39068.0,0.0089142]
[1645872849183,1.47490476,39069.0,39068.0,0.0089142]
[1645872850538,0.97283273,39069.0,39068.0,0.0089142]
[1645872850738,1.35012673,39069.0,39068.0,0.0089142]
[1645872850938,0.428694,39069.0,39068.0,0.0089142]
[1645872851139,0.56702673,39069.0,39068.0,0.0089142]
[1645872851341,0.428694,39069.0,39068.0,0.0089142]
[1645872852139,1.211794,39069.0,39068.0,0.0089142]
[1645872852337,0.56702673,39069.0,39068.0,0.0089142]
[1645872852741,0.428694,39069.0,39068.0,0.0089142]
[1645872853140,0.429694,39069.0,39068.0,0.0089142]
[1645872853339,1.212794,39069.0,39068.0,0.0089142]
[1645872853738,1.35112673,39069.0,39068.0,0.0089142]
[1645872854383,1.35012673,39069.0,39068.0,0.0089142]
[1645872855387,0.18973273,39069.0,39068.0,0.0089142]
[1645872855587,0.56702673,39069.0,39068.0,0.0089142]
[1645872855783,0.428694,39069.0,39068.0,0.0089142]
[1645872856186,0.0514,39069.0,39068.0,0.0089142]
[1645872856485,0.42838599,39069.0,39068.0,0.0089142]
[1645872856684,0.05109199,39069.0,39068.0,0.0089142]
[1645872856884,0.05109199,39069.0,39068.0,0.2689142]
[1645872856885,0.377294,39069.0,39068.0,0.2689142]
[1645872858040,0.002,39074.0,39068.0,0.2689142]
[1645872858829,0.002,39074.0,39069.0,0.21784879]
[1645872859233,7.2e-05,39077.0,39069.0,0.21784879]
[1645872859431,7.2e-05,39077.0,39070.0,0.3003268]
[1645872860431,7.2e-05,39077.0,39070.0,0.3]
[1645872860636,7.2e-05,39082.0,39070.0,0.3003268]
[1645872861234,0.001072,39082.0,39070.0,0.3003268]
[1645872861692,0.001072,39082.0,39070.0,0.3]
[1645872861893,0.001072,39082.0,39070.0,0.30032682]
[1645872862491,7.2e-05,39082.0,39070.0,0.30032682]
[1645872862893,7.2e-05,39082.0,39070.0,0.3]
[1645872863091,7.2e-05,39082.0,39070.0,0.30032682]
[1645872863493,7.2e-05,39082.0,39075.0,0.2018738]
[1645872864292,7.2e-05,39082.0,39070.0,0.30032683]
[1645872865355,0.783172,39082.0,39071.0,0.2183885]
[1645872865757,7.2e-05,39082.0,39071.0,0.2183885]
[1645872865961,7.2e-05,39082.0,39072.0,0.3]
[1645872866159,7.2e-05,39082.0,39077.0,0.23729211]
[1645872866360,7.2e-05,39082.0,39078.0,0.32559]
[1645872866563,7.2e-05,39082.0,39080.0,0.02559]
[1645872866564,2e-06,39082.0,39080.0,0.02559]
[1645872866760,2e-06,39082.0,39081.0,0.12559]
[1645872867258,0.002247,39085.0,39083.0,0.25623154]
[1645872867660,0.002247,39085.0,39083.0,0.23064154]
[1645872867858,0.002247,39085.0,39082.0,5.8e-05]
[1645872870286,0.377294,39084.0,39082.0,5.8e-05]
[1645872870484,0.377294,39083.0,39082.0,5.8e-05]
[1645872870888,0.002247,39085.0,39082.0,5.8e-05]
[1645872871285,0.001,39083.0,39082.0,5.8e-05]
[1645872874532,0.785347,39085.0,39082.0,5.8e-05]
[1645872874732,0.002247,39085.0,39082.0,5.8e-05]
[1645872875833,0.785347,39085.0,39082.0,5.8e-05]
[1645872876033,0.7831,39083.0,39082.0,5.8e-05]
[1645872876487,0.8831,39083.0,39082.0,5.8e-05]
[1645872876886,0.9345,39083.0,39082.0,5.8e-05]
[1645872877088,1.306794,39083.0,39082.0,5.8e-05]
[1645872877286,1.318014,39083.0,39082.0,5.8e-05]
[1645872877889,1.41750993,39083.0,39082.0,5.8e-05]
[1645872878087,1.53660432,39083.0,39082.0,5.8e-05]
[1645872878487,1.53560432,39083.0,39082.0,5.8e-05]
[1645872878891,1.43560432,39083.0,39082.0,5.8e-05]
[1645872882234,1.46235569,39083.0,39082.0,5.8e-05]
[1645872882434,1.66298757,39083.0,39082.0,5.8e-05]
[1645872882834,1.65327164,39083.0,39082.0,5.8e-05]
[1645872883035,1.66607043,39083.0,39082.0,5.8e-05]
[1645872883234,1.65427164,39083.0,39082.0,5.8e-05]
[1645872883435,1.66380682,39083.0,39082.0,5.8e-05]
[1645872883635,1.65358682,39083.0,39082.0,5.8e-05]
[1645872884578,1.65258682,39083.0,39082.0,5.8e-05]
[1645872885277,1.65358682,39083.0,39082.0,5.8e-05]
[1645872886477,1.65258682,39083.0,39082.0,5.8e-05]
[1645872887730,1.64305164,39083.0,39082.0,5.8e-05]
[1645872887930,1.65407784,39083.0,39082.0,5.8e-05]
[1645872888331,1.63161841,39083.0,39082.0,5.8e-05]
[1645872888532,1.60993508,39083.0,39082.0,5.8e-05]
[1645872889431,0.7831,39081.0,39068.0,0.05]
[1645872889631,0.80869,39078.0,39070.0,0.00030537]
[1645872889831,0.7831,39076.0,39070.0,0.00030537]
[1645872890031,0.7831,39074.0,39070.0,0.00030537]
[1645872890232,0.7831,39071.0,39070.0,0.00030537]
[1645872890432,1.261794,39071.0,39070.0,0.00030537]
[1645872890632,1.261794,39071.0,39067.0,0.04]
[1645872890831,1.261794,39071.0,39069.0,0.00030533]
[1645872890832,1.224437,39070.0,39069.0,0.00030533]
[1645872891033,1.325837,39070.0,39069.0,0.00030533]
[1645872891792,1.325837,39070.0,39067.0,0.04]
[1645872891988,1.325837,39070.0,39068.0,0.00030534]
[1645872892988,1.325837,39070.0,39067.0,0.04]
[1645872893188,1.325837,39070.0,39067.0,0.04030534]
[1645872893388,1.327837,39070.0,39067.0,0.04030534]
[1645872894188,1.327837,39070.0,39067.0,0.04]
[1645872894392,1.327837,39070.0,39067.0,0.30030534]
[1645872894588,1.325837,39070.0,39067.0,0.30030534]
[1645872895440,1.325837,39070.0,39067.0,0.3]
[1645872895638,1.325837,39070.0,39067.0,0.30030534]
[1645872896639,1.325837,39070.0,39067.0,0.3]
[1645872896836,1.325837,39070.0,39067.0,0.30030534]
[1645872897938,1.325837,39070.0,39067.0,0.3]
[1645872898137,0.7831,39069.0,39067.0,0.30030534]
[1645872898336,0.542737,39070.0,39067.0,0.30030534]
[1645872898337,0.377294,39068.0,39067.0,0.30030534]
[1645872898538,0.477294,39068.0,39067.0,0.30030534]
[1645872898989,0.477294,39068.0,39067.0,0.3]
[1645872899393,1.0831,39067.0,39066.0,5.35e-06]
[1645872899604,1.0831,39067.0,39042.0,0.3011]
[1645872899605,1.314794,39066.0,39042.0,0.3011]
[1645872899800,0.7831,39053.0,39042.0,0.3011]
[1645872899992,0.7831,39051.0,39036.0,3.0]
[1645872900192,0.7831,39051.0,39036.0,2.995]
[1645872900193,0.8331,39049.0,39036.0,2.995]
[1645872900398,0.728694,39048.0,39035.0,0.1158]
[1645872900595,0.728694,39048.0,39033.0,0.04]
[1645872900596,0.064098,39046.0,39033.0,0.04]
[1645872900794,1.90024457,39045.0,39033.0,0.04]
[1645872900994,0.7831,39043.0,39033.0,0.04]
[1645872901292,0.32436857,39041.0,39033.0,0.04]
[1645872901490,0.728694,39040.0,39033.0,0.04]
[1645872901695,0.0514,39039.0,39038.0,0.23330533]
[1645872901892,0.1,39042.0,39039.0,0.08881485]
[1645872902101,0.0514,39041.0,39039.0,0.08881485]
[1645872903034,0.0140096,39041.0,39039.0,0.08881485]
[1645872905037,1.160394,39040.0,39039.0,0.08881485]
[1645872905239,0.1514,39040.0,39039.0,0.08881485]
[1645872905436,0.32461023,39040.0,39039.0,0.08881485]
[1645872905636,0.6514,39040.0,39039.0,0.08881485]
[1645872906037,1.1514,39040.0,39039.0,0.08881485]
[1645872906237,1.32461023,39040.0,39039.0,0.08881485]
[1645872906490,1.27461023,39040.0,39039.0,0.08881485]
[1645872906684,1.22461023,39040.0,39039.0,0.08881485]
[1645872907084,1.27461023,39040.0,39039.0,0.08881485]
[1645872907289,1.32561023,39040.0,39039.0,0.08881485]
[1645872907684,1.32561023,39040.0,39039.0,0.34881485]
[1645872908484,1.32461023,39040.0,39039.0,0.34881485]
[1645872909086,1.22461023,39040.0,39039.0,0.34881485]
[1645872909286,0.72461023,39040.0,39039.0,0.34881485]
[1645872909486,0.22461023,39040.0,39039.0,0.34881485]
[1645872909687,0.0514,39040.0,39039.0,0.34881485]
[1645872912234,0.1014,39040.0,39039.0,0.34881485]
[1645872913233,0.0514,39040.0,39039.0,0.34881485]
[1645872913987,0.0524,39045.0,39039.0,0.34881485]
[1645872914186,0.1024,39045.0,39039.0,0.34881485]
[1645872914387,0.1024,39045.0,39041.0,0.1]
[1645872914388,0.001,39045.0,39041.0,0.1]
[1645872914588,0.5,39045.0,39041.0,0.1]
[1645872914786,0.5,39045.0,39043.0,0.19605833]
[1645872914992,0.47321023,39053.0,39043.0,0.19605833]
[1645872914993,0.23727623,39052.0,39043.0,0.19605833]
[1645872915188,0.677294,39051.0,39043.0,0.19605833]
[1645872915389,0.7841,39050.0,39043.0,0.19705833]
[1645872915590,0.3,39049.0,39043.0,0.19705833]
[1645872916290,0.4,39049.0,39044.0,0.0003071]
[1645872916489,0.57321023,39049.0,39044.0,0.0003071]
[1645872916789,0.4,39049.0,39044.0,0.0003071]
[1645872917191,0.57321023,39049.0,39043.0,0.19605833]
[1645872917391,0.57421023,39049.0,39045.0,0.00030667]
[1645872918236,1.160394,39048.0,39045.0,0.00030667]
[1645872918436,0.064079,39046.0,39043.0,0.19605833]
[1645872919039,0.1,39049.0,39043.0,0.19605833]
[1645872919238,0.05,39049.0,39043.0,0.19605833]
[1645872919438,0.1,39049.0,39043.0,0.19705833]
[1645872919638,0.52321023,39053.0,39043.0,0.19705833]
[1645872919843,0.05,39049.0,39044.0,0.00030667]
[1645872920337,0.05,39052.0,39044.0,0.00030667]
[1645872920637,0.677294,39051.0,39044.0,0.00030667]
[1645872920836,0.064071,39049.0,39043.0,0.19605833]
[1645872921040,0.064071,39049.0,39046.0,0.00030667]
[1645872921584,0.377294,39048.0,39046.0,0.00030667]
[1645872921984,0.064071,39049.0,39044.0,0.002]
[1645872922183,0.377294,39048.0,39045.0,0.0003067]
[1645872923197,0.377294,39048.0,39043.0,0.19605833]
[1645872923198,0.677294,39048.0,39043.0,0.19605833]
[1645872923384,0.301,39048.0,39045.0,0.0003067]
[1645872923583,0.001,39048.0,39045.0,0.0003067]
[1645872924185,0.377294,39047.0,39045.0,0.0003067]
[1645872924386,0.001,39048.0,39043.0,0.19605833]
[1645872924586,0.377294,39047.0,39045.0,0.0003067]
[1645872925240,0.064071,39049.0,39045.0,2.423e-05]
[1645872925443,0.064071,39049.0,39045.0,0.00202423]
[1645872925639,0.064071,39049.0,39045.0,0.002]
[1645872926541,0.001,39052.0,39043.0,0.19605833]
[1645872926745,0.39094,39057.0,39044.0,0.1]
[1645872926943,0.3807,39057.0,39044.0,0.1]
[1645872927144,0.1816,39059.0,39044.0,0.12559]
[1645872927344,0.14234433,39058.0,39051.0,0.18232789]
[1645872927547,0.45258433,39060.0,39051.0,0.18232789]
[1645872927747,0.5,39059.0,39051.0,0.18232789]
[1645872927950,0.064059,39057.0,39051.0,0.18232789]
[1645872929588,0.065059,39057.0,39051.0,0.18232789]
[1645872930688,0.064059,39057.0,39051.0,0.18232789]
[1645872931290,0.065059,39057.0,39051.0,0.18232789]
[1645872931889,0.065059,39057.0,39044.0,0.02559]
[1645872932090,0.065059,39057.0,39051.0,0.26]
[1645872933333,0.066059,39057.0,39051.0,0.26]
[1645872934336,0.06575071,39057.0,39051.0,0.26]
[1645872934739,0.06375071,39057.0,39051.0,0.26]
[1645872935337,0.06475071,39057.0,39051.0,0.26]
[1645872936585,0.27950074,39057.0,39051.0,0.26]
[1645872936785,0.37950074,39057.0,39051.0,0.26]
[1645872937386,0.27950074,39057.0,39051.0,0.26]
[1645872937587,0.21575003,39056.0,39051.0,0.26]
[1645872937786,0.56375071,39057.0,39051.0,0.26]
[1645872937787,0.4,39055.0,39051.0,0.26]
[1645872937987,0.1,39052.0,39051.0,0.26]
[1645872938291,1.560394,39052.0,39051.0,0.26]
[1645872938489,0.8831,39052.0,39051.0,0.26]
[1645872938688,1.560394,39052.0,39051.0,0.26]
[1645872939290,2.560394,39052.0,39051.0,0.26]
[1645872939491,2.661394,39052.0,39051.0,0.26]
[1645872939892,2.93110802,39052.0,39051.0,0.26]
[1645872940353,2.98576257,39052.0,39051.0,0.03407924]
[1645872940555,2.98552235,39052.0,39051.0,0.03407924]
[1645872940860,2.66015378,39052.0,39051.0,0.03407924]
[1645872941255,2.71155378,39052.0,39051.0,0.03407924]
[1645872941456,2.71155378,39052.0,39043.0,0.00032768]
[1645872941457,0.7831,39048.0,39043.0,0.00032768]
[1645872941755,0.74752306,39044.0,39043.0,0.00032768]
[1645872941953,1.14752306,39044.0,39043.0,0.00032768]
[1645872942355,0.877294,39044.0,39043.0,0.00032768]
[1645872942654,0.877294,39044.0,39039.0,0.08881485]
[1645872942655,0.377294,39043.0,39042.0,0.00032765]
[1645872942855,0.94759458,39043.0,39042.0,0.00032765]
[1645872943460,0.83439558,39044.0,39042.0,0.00032765]
[1645872943662,0.5,39044.0,39039.0,0.08881485]
[1645872943857,0.5,39044.0,39041.0,0.00032765]
[1645872944285,0.21622345,39043.0,39041.0,0.00032765]
[1645872944487,0.27030058,39042.0,39041.0,0.00032765]
[1645872944885,0.20165155,39042.0,39039.0,0.08881485]
[1645872945084,0.21633375,39040.0,39039.0,0.08881485]
[1645872945584,0.21633375,39040.0,39039.0,0.08981485]
[1645872945990,0.21633375,39042.0,39039.0,0.08981485]
[1645872946185,0.001,39047.0,39039.0,0.08981485]
[1645872946186,0.21631647,39043.0,39039.0,0.08981485]
[1645872946386,0.37832069,39048.0,39039.0,0.08981485]
[1645872946585,0.90509515,39050.0,39040.0,0.3]
[1645872946984,0.52677446,39050.0,39039.0,0.08881485]
[1645872947184,0.52587466,39050.0,39039.0,0.08881485]
[1645872947384,0.52587466,39050.0,39040.0,0.003]
[1645872947584,0.52587466,39050.0,39043.0,0.00032765]
[1645872948439,0.52587466,39050.0,39040.0,0.003]
[1645872948642,0.52587466,39050.0,39039.0,0.08881485]
[1645872948840,0.52587466,39050.0,39043.0,0.00032765]
[1645872949440,0.52587466,39050.0,39043.0,0.00232765]
[1645872949640,0.02677446,39050.0,39043.0,0.00232765]
[1645872950743,0.02677446,39050.0,39043.0,0.00032765]
[1645872950942,0.02677446,39050.0,39039.0,0.08881485]
[1645872950943,0.37832069,39048.0,39039.0,0.08881485]
[1645872951145,0.44239369,39049.0,39043.0,0.00032765]
[1645872951609,0.37832069,39048.0,39043.0,0.00032765]
[1645872951800,0.37832069,39047.0,39043.0,0.00032765]
[1645872951997,0.37832069,39048.0,39043.0,0.00032765]
[1645872952197,0.37832069,39048.0,39039.0,0.08881485]
[1645872952399,0.37832069,39047.0,39043.0,0.00030364]
[1645872953399,0.37832069,39047.0,39039.0,0.08881485]
[1645872953600,0.37832069,39047.0,39043.0,0.00030364]
[1645872954200,0.14330477,39048.0,39043.0,0.00030364]
[1645872954201,0.27043089,39044.0,39043.0,0.00030364]
[1645872954605,1.15561469,39044.0,39043.0,0.00030364]
[1645872954800,1.71352817,39044.0,39043.0,0.00030364]
[1645872955001,1.71352817,39044.0,39042.0,0.00030365]
[1645872955002,1.160394,39043.0,39042.0,0.00030365]
[1645872955245,1.89045765,39043.0,39042.0,0.00030365]
[1645872955848,1.89045765,39043.0,39039.0,0.08881485]
[1645872955849,1.91604765,39043.0,39039.0,0.08881485]
[1645872956046,0.38865754,39040.0,39039.0,0.08881485]
[1645872956247,0.428694,39040.0,39039.0,0.08881485]
[1645872957547,0.429694,39040.0,39039.0,0.08881485]
[1645872957847,0.49379,39040.0,39039.0,0.08881485]
[1645872958649,0.115496,39040.0,39039.0,0.08881485]
[1645872959097,0.49279,39040.0,39039.0,0.08881485]
[1645872959291,0.115496,39040.0,39039.0,0.08881485]
[1645872959491,0.116496,39040.0,39039.0,0.08881485]
[1645872960091,0.49379,39040.0,39039.0,0.08881485]
[1645872960491,0.899596,39040.0,39039.0,0.08881485]
[1645872960695,1.199596,39040.0,39039.0,0.08881485]
[1645872960992,1.34224675,39040.0,39039.0,0.08881485]
[1645872961293,1.04224675,39040.0,39039.0,0.08881485]
[1645872961491,1.04324675,39040.0,39039.0,0.08881485]
[1645872962295,0.116496,39040.0,39039.0,0.08881485]
[1645872962838,0.115496,39040.0,39039.0,0.08881485]
[1645872963437,0.116496,39040.0,39039.0,0.08881485]
[1645872964040,0.38640543,39040.0,39039.0,0.08881485]
[1645872964941,0.11500143,39040.0,39039.0,0.08881485]
[1645872965439,0.11600143,39040.0,39039.0,0.08881485]
[1645872965639,0.065096,39040.0,39039.0,0.08881485]
[1645872966344,0.001,39040.0,39039.0,0.08881485]
[1645872966804,0.21629824,39041.0,39039.0,0.08881485]
[1645872967204,0.21629824,39041.0,39031.0,0.01024]
[1645872967604,0.21629824,39041.0,39031.0,0.064076]
[1645872967803,0.21629824,39042.0,39031.0,0.064076]
[1645872968003,0.21629824,39042.0,39039.0,0.26]
[1645872970740,0.21629824,39041.0,39039.0,0.26]
[1645872971443,0.21629824,39040.0,39039.0,0.26]
[1645872972243,0.21729824,39041.0,39039.0,0.26]
[1645872972742,0.21629824,39041.0,39039.0,0.26]
[1645872973543,0.21629824,39040.0,39039.0,0.26]
[1645872974293,0.064084,39043.0,39039.0,0.26]
[1645872974294,0.270404,39041.0,39039.0,0.26]
[1645872974492,0.21631814,39040.0,39039.0,0.26]
[1645872977302,0.14368782,39045.0,39039.0,0.56]
[1645872977502,0.001,39045.0,39040.0,0.07699]
[1645872977754,0.001,39045.0,39043.0,0.22559]
[1645872977947,0.00131242,39050.0,39044.0,0.38723]
[1645872978146,0.00131242,39050.0,39049.0,0.2]
[1645872978351,0.43649221,39055.0,39053.0,0.2]
[1645872978547,0.22017407,39055.0,39054.0,0.53723]
[1645872978746,0.270404,39062.0,39054.0,0.53723]
[1645872978747,0.21631814,39062.0,39055.0,0.02559]
[1645872978948,0.54079855,39066.0,39058.0,0.37559]
[1645872979146,0.21631814,39066.0,39059.0,0.31024]
[1645872979347,0.21631814,39064.0,39059.0,0.36024]
[1645872979545,0.21631814,39064.0,39059.0,0.71024]
[1645872979746,0.21631814,39064.0,39060.0,0.06402021]
[1645872979949,0.21631814,39064.0,39061.0,0.3]
[1645872980146,0.25631814,39067.0,39061.0,0.35]
[1645872980346,0.25631814,39067.0,39062.0,0.02559]
[1645872981346,0.25631814,39067.0,39062.0,0.089613]
[1645872981589,0.25631814,39067.0,39063.0,0.3]
[1645872982190,0.25631814,39067.0,39063.0,0.29930204]
[1645872982594,0.2566244,39067.0,39064.0,0.051217]
[1645872982792,0.04030626,39067.0,39064.0,0.051217]
[1645872982992,0.04030626,39067.0,39062.0,0.064023]
[1645872983189,0.04030626,39067.0,39061.0,0.178046]
[1645872983389,0.04030626,39067.0,39061.0,0.128046]
[1645872983593,0.21631814,39065.0,39059.0,0.003]
[1645872983791,0.21631814,39064.0,39059.0,0.003]
[1645872984189,0.21631814,39065.0,39059.0,0.003]
[1645872984391,0.21663276,39066.0,39059.0,0.003]
[1645872984590,0.21631814,39065.0,39059.0,0.003]
[1645872984790,0.21631814,39065.0,39055.0,0.42807]
[1645872984989,0.00031463,39064.0,39055.0,0.42807]
[1645872985440,0.00031463,39064.0,39055.0,0.3]
[1645872986039,0.21631814,39066.0,39055.0,0.3]
[1645872986239,0.00031464,39061.0,39055.0,0.3]
[1645872986640,0.00031464,39061.0,39055.0,0.415269]
[1645872986939,0.00031464,39061.0,39059.0,0.18595594]
[1645872987143,0.21631814,39066.0,39059.0,0.07833852]
[1645872987540,0.00030743,39060.0,39059.0,0.08033852]
[1645872988341,0.21631814,39066.0,39059.0,0.08033852]
[1645872988539,0.00030742,39061.0,39059.0,0.08033852]
[1645872988741,0.00030742,39061.0,39055.0,0.364038]
[1645872988996,0.00030742,39061.0,39055.0,0.064038]
[1645872989195,0.00030742,39061.0,39056.0,0.3]
[1645872989596,0.21631814,39066.0,39056.0,0.3]
[1645872989795,0.00030742,39060.0,39059.0,0.20541307]
[1645872990896,0.35631814,39067.0,39059.0,0.20541307]
[1645872991096,0.00030815,39061.0,39059.0,0.20541307]
[1645872991999,0.25631814,39067.0,39059.0,0.23395498]
[1645872992197,0.00030815,39062.0,39059.0,0.23395498]
[1645872993336,0.04,39067.0,39059.0,0.23395498]
[1645872993535,0.00130815,39062.0,39059.0,0.23395498]
[1645872994339,0.00130815,39062.0,39059.0,0.29798998]
[1645872994537,0.001,39062.0,39059.0,0.29798998]
[1645872994738,0.00130807,39062.0,39059.0,0.29798998]
[1645872995339,0.00030807,39062.0,39059.0,0.29798998]
[1645872995539,0.00030807,39062.0,39059.0,0.29998998]
[1645872995742,0.04,39067.0,39059.0,0.29998998]
[1645872995939,0.00030807,39062.0,39059.0,0.29998998]
[1645872996791,0.04,39067.0,39059.0,0.29798998]
[1645872996990,0.04,39067.0,39060.0,0.3]
[1645872997193,0.00030807,39062.0,39059.0,0.29798998]
[1645872997591,0.00030807,39062.0,39060.0,0.303]
[1645872997992,0.04,39067.0,39060.0,0.003]
[1645872998192,0.04,39067.0,39060.0,0.303]
[1645872998398,0.00030808,39063.0,39060.0,0.303]
[1645872998593,0.00030808,39063.0,39060.0,0.003]
[1645872998796,0.00030808,39063.0,39059.0,0.29798998]
[1645872999194,0.04,39067.0,39059.0,0.29798998]
[1645872999598,0.00030808,39063.0,39060.0,0.3]
[1645872999798,0.00030808,39063.0,39061.0,0.18589573]
[1645873000250,0.00030808,39063.0,39062.0,0.3]
[1645873000450,0.04,39067.0,39062.0,0.32559]
[1645873000653,0.00030808,39064.0,39062.0,0.32559]
[1645873001252,0.00030808,39064.0,39063.0,0.07699]
[1645873001553,0.00030808,39064.0,39063.0,0.3514]
[1645873001851,0.04,39067.0,39064.0,0.051217]
[1645873001852,0.00030807,39065.0,39064.0,0.051217]
[1645873002054,0.00030807,39065.0,39064.0,0.402617]
[1645873002653,0.00030807,39065.0,39064.0,0.39716066]
[1645873002852,0.04,39067.0,39064.0,0.39716066]
[1645873003056,0.00030807,39066.0,39064.0,0.39716066]
[1645873003253,0.00030807,39066.0,39065.0,0.3]
[1645873004093,0.04,39067.0,39065.0,0.36401861]
[1645873004294,0.04030806,39067.0,39066.0,0.3]
[1645873005095,0.04030806,39067.0,39066.0,0.3514]
[1645873005293,0.04,39067.0,39066.0,0.3514]
[1645873010344,0.04,39067.0,39066.0,0.37699]
[1645873010744,0.04,39067.0,39066.0,0.3514]
[1645873013494,0.04,39067.0,39066.0,0.0514]
[1645873013995,0.04,39067.0,39066.0,0.3114]
[1645873014200,0.04,39067.0,39066.0,0.6114]
[1645873014897,0.04,39067.0,39066.0,0.3114]
[1645873015095,0.04,39067.0,39066.0,0.26]
[1645873015535,0.04,39067.0,39066.0,0.264]
[1645873015934,0.035,39067.0,39066.0,0.264]
[1645873017337,0.035,39067.0,39066.0,0.26]
[1645873017537,0.035,39067.0,39066.0,0.15926813]
[1645873019599,0.035,39067.0,39066.0,0.16126813]
[1645873020402,0.25098117,39067.0,39066.0,0.16126813]
[1645873020902,0.25108619,39067.0,39066.0,0.16126813]
[1645873021101,0.035,39067.0,39066.0,0.16126813]
[1645873021500,0.25108273,39067.0,39066.0,0.15926813]
[1645873021702,0.35108273,39067.0,39066.0,0.16026813]
[1645873022103,0.35108273,39067.0,39066.0,0.02660601]
[1645873022104,0.4587537,39067.0,39066.0,0.02660601]
[1645873022501,0.3587537,39067.0,39066.0,0.02660601]
[1645873022748,0.035,39067.0,39066.0,0.02660601]
[1645873023548,0.035,39067.0,39066.0,0.02760601]
[1645873023748,0.035,39067.0,39066.0,0.02660601]
[1645873024750,0.035,39067.0,39066.0,0.02615721]
[1645873025350,0.035,39067.0,39066.0,0.02515721]
[1645873025550,0.035,39067.0,39066.0,0.02615721]
[1645873026893,0.035,39067.0,39066.0,0.02515721]
[1645873027493,0.037,39067.0,39066.0,0.02515721]
[1645873027693,0.137,39067.0,39066.0,0.02515721]
[1645873028096,0.51547263,39067.0,39066.0,0.02515721]
[1645873028295,0.51547263,39067.0,39061.0,0.001]
[1645873028296,1.20319781,39065.0,39061.0,0.001]
[1645873028494,1.18719569,39064.0,39061.0,0.001]
[1645873028694,0.37850569,39063.0,39061.0,0.001]
[1645873028893,0.02559,39061.0,39054.0,0.05]
[1645873029094,0.21629457,39056.0,39051.0,0.21337801]
[1645873029698,0.21629457,39056.0,39054.0,0.002]
[1645873030745,0.21629457,39056.0,39054.0,0.064043]
[1645873031644,0.21629457,39056.0,39054.0,0.066043]
[1645873032446,0.21629457,39056.0,39054.0,0.002]
[1645873032948,0.18026669,39057.0,39051.0,0.27742501]
[1645873033145,0.00029515,39057.0,39051.0,0.27742501]
[1645873033545,0.00029515,39057.0,39051.0,0.27942501]
[1645873034191,0.27036821,39059.0,39051.0,0.27942501]
[1645873034391,0.00029515,39056.0,39051.0,0.27942501]
[1645873034796,0.00029515,39056.0,39052.0,0.3]
[1645873034992,0.00029515,39056.0,39051.0,0.27742501]
[1645873035192,0.00029515,39056.0,39052.0,0.3]
[1645873035392,0.27036821,39061.0,39052.0,0.3]